bitfinex-derivatives/quotes_SOLF0:USTF0_20250703
["timestamp","ask_amount","ask_price","bid_price","bid_amount"]
[1751528486581,3.6391911,155.53,155.51,6.4284]
[1751528486782,6.4273,155.54,155.51,6.4284]
[1751528486981,10.0664911,155.54,155.51,6.4284]
[1751528487181,10.0664911,155.54,155.51,192.9684]
[1751528487383,6.4276,155.53,155.5,561.6686]
[1751528487575,3.6391911,155.54,155.51,186.54]
[1751528488077,6.4279,155.52,155.5,792.5886]
[1751528488281,6.4279,155.52,155.5,786.16]
[1751528490485,3.6391911,155.54,155.5,786.16]
[1751528490883,6.4279,155.53,155.5,792.5886]
[1751528492587,6.4279,155.53,155.51,186.54]
[1751528493086,6.4279,155.53,155.51,192.9683]
[1751528493283,6.4279,155.53,155.51,186.54]
[1751528501188,3.6391911,155.54,155.5,555.24]
[1751528501394,3.6391911,155.52,155.5,555.24]
[1751528501794,2.32886723,155.51,155.5,555.24]
[1751528503495,6.4282,155.52,155.5,555.24]
[1751528503695,2.32886723,155.51,155.5,741.96]
[1751528504291,8.75716723,155.51,155.5,741.96]
[1751528504489,8.75716723,155.51,155.49,186.68]
[1751528504998,8.75716723,155.51,155.48,6.4293]
[1751528505196,8.75716723,155.51,155.49,186.66]
[1751528505497,8.75716723,155.51,155.48,6.4293]
[1751528505793,8.75716723,155.51,155.49,186.64]
[1751528507394,6.4283,155.51,155.49,186.64]
[1751528507595,8.75716723,155.51,155.49,186.64]
[1751528507900,8.75716723,155.51,155.49,193.0691]
[1751528508093,8.75716723,155.51,155.49,186.64]
[1751528508296,0.04359367,155.52,155.49,2.32886723]
[1751528508495,0.04359367,155.52,155.5,186.56]
[1751528508891,2.3724609,155.52,155.5,186.56]
[1751528509700,8.8006609,155.52,155.5,192.9887]
[1751528509895,8.8006609,155.52,155.5,186.56]
[1751528510094,8.75716723,155.51,155.5,186.56]
[1751528510802,8.75716723,155.51,155.48,237.49435652]
[1751528510995,2.32886723,155.5,155.48,237.49435652]
[1751528511598,2.32886723,155.5,155.49,186.62]
[1751528511901,2.32886723,155.5,155.48,50.87435652]
[1751528511902,6.4283,155.51,155.48,50.87435652]
[1751528512102,6.4283,155.51,155.48,237.47435652]
[1751528512401,10.11089104,155.52,155.48,237.47435652]
[1751528513493,6.429,155.5,155.48,0.04495652]
[1751528513699,3.63919737,155.5,155.48,0.04495652]
[1751528514301,10.06819737,155.5,155.48,0.04495652]
[1751528516497,6.4292,155.49,155.48,0.04495652]
[1751528525005,9.6466925,155.5,155.42,44.42]
[1751528525201,3.63919737,155.45,155.42,44.42]
[1751528525803,10.07019737,155.45,155.42,44.42]
[1751528526202,10.11542326,155.45,155.42,44.42]
[1751528526702,6.4313,155.44,155.42,44.42]
[1751528528112,10.07079737,155.43,155.42,44.42]
[1751528530307,6.4325,155.41,155.4,555.46]
[1751528530510,3.63919737,155.41,155.35,4.5842]
[1751528530701,10.07249737,155.39,155.37,44.42]
[1751528530909,3.63919737,155.39,155.37,44.42]
[1751528531214,10.07289737,155.38,155.37,44.42]
[1751528532207,0.04442426,155.4,155.37,44.42]
[1751528532914,6.47742426,155.4,155.37,44.42]
[1751528533313,0.04442426,155.4,155.37,44.42]
[1751528533616,3.63919737,155.39,155.37,44.42]
[1751528534113,3.63919737,155.39,155.35,2.2572]
[1751528534315,0.04442426,155.4,155.35,2.2572]
[1751528534316,3.63919737,155.37,155.35,2.2572]
[1751528534711,10.07369737,155.37,155.35,2.2572]
[1751528535212,10.07369737,155.37,155.34,2.3116]
[1751528535410,3.63919737,155.37,155.33,44.5]
[1751528536210,0.04442426,155.4,155.33,50.9356]
[1751528536410,3.63919737,155.37,155.33,50.9356]
[1751528536610,3.63919737,155.37,155.33,44.5]
[1751528536814,6.4348,155.36,155.33,44.5]
[1751528537219,3.63919737,155.37,155.33,44.5]
[1751528537521,0.04751772,155.36,155.33,44.5]
[1751528537724,3.63919737,155.35,155.33,44.5]
[1751528537916,6.4357,155.34,155.32,555.64]
[1751528538120,3.63919737,155.35,155.31,2.175]
[1751528538922,3.63919737,155.33,155.3,44.5]
[1751528539417,6.4365,155.32,155.3,44.5]
[1751528539623,3.63919737,155.33,155.3,44.5]
[1751528540220,3.68277455,155.33,155.3,44.5]
[1751528541327,10.11887455,155.33,155.3,44.5]
[1751528541917,3.68277455,155.33,155.3,44.5]
[1751528542120,0.04357718,155.33,155.3,44.5]
[1751528542425,0.04357718,155.33,155.31,6.4366]
[1751528544520,92.93264312,155.39,155.3,44.5]
[1751528544715,3.63919737,155.38,155.31,10.32619737]
[1751528544913,3.63919737,155.38,155.32,187.04]
[1751528545119,6.4348,155.36,155.33,6.4356]
[1751528545425,3.63919737,155.38,155.32,187.04]
[1751528545723,6.4345,155.37,155.34,6.4351]
[1751528548128,10.07309737,155.38,155.35,6.4349]
[1751528548724,92.93264312,155.39,155.37,6.4341]
[1751528548922,92.93264312,155.39,155.35,44.52]
[1751528549828,92.93264312,155.39,155.36,6.4342]
[1751528550530,99.36614312,155.39,155.36,6.4342]
[1751528550829,92.93264312,155.39,155.37,6.4341]
[1751528551027,3.63919737,155.4,155.37,6.4341]
[1751528551225,3.63919737,155.4,155.35,44.52]
[1751528551421,6.4337,155.38,155.36,6.4343]
[1751528551928,6.4341,155.37,155.35,50.9548]
[1751528552133,3.63919737,155.4,155.35,50.9548]
[1751528552429,3.63919737,155.4,155.35,44.52]
[1751528553327,6.4335,155.39,155.36,6.4345]
[1751528554328,10.07289737,155.38,155.35,50.9548]
[1751528556531,10.07289737,155.38,155.35,44.52]
[1751528557432,3.63919737,155.38,155.35,50.955]
[1751528558130,10.07289737,155.38,155.35,50.955]
[1751528560132,3.63919737,155.38,155.35,50.955]
[1751528560827,10.07309737,155.38,155.35,44.52]
[1751528561029,3.63919737,155.38,155.35,44.52]
[1751528561429,10.07309737,155.38,155.35,44.52]
[1751528562335,6.4344,155.37,155.35,44.52]
[1751528562531,3.63919737,155.38,155.35,44.52]
[1751528563034,6.4342,155.37,155.35,44.52]
[1751528564033,10.07309737,155.38,155.35,44.52]
[1751528564936,6.4342,155.37,155.35,44.52]
[1751528565438,10.07309737,155.38,155.35,44.52]
[1751528566138,10.07309737,155.38,155.35,50.9549]
[1751528566435,3.63919737,155.38,155.35,44.52]
[1751528566837,3.63919737,155.38,155.35,50.9547]
[1751528567037,3.63919737,155.38,155.35,44.52]
[1751528567536,3.63919737,155.38,155.36,6.4343]
[1751528567839,6.4335,155.39,155.35,44.52]
[1751528568042,3.63919737,155.41,155.35,44.52]
[1751528568238,3.63919737,155.41,155.36,2.1287]
[1751528568438,10.07189737,155.41,155.38,6.4335]
[1751528569141,6.433,155.4,155.37,193.1939]
[1751528569761,6.4334,155.39,155.37,193.1939]
[1751528570544,6.4331,155.4,155.37,193.1939]
[1751528573947,10.07179737,155.41,155.37,193.1939]
[1751528574146,10.07179737,155.41,155.38,6.4337]
[1751528575545,6.4329,155.4,155.37,193.194]
[1751528576041,6.4326,155.41,155.37,193.194]
[1751528576242,3.63919737,155.4,155.37,193.194]
[1751528576445,3.63919737,155.38,155.36,2.1287]
[1751528576642,6.4344,155.37,155.35,44.52]
[1751528576947,3.63919737,155.36,155.35,44.52]
[1751528577148,10.07369737,155.36,155.35,44.52]
[1751528579943,3.63919737,155.36,155.35,44.52]
[1751528580245,4.591,155.43,155.35,44.52]
[1751528580246,3.63919737,155.38,155.35,44.52]
[1751528580946,10.07319737,155.38,155.35,44.52]
[1751528582548,10.07319737,155.38,155.35,50.9548]
[1751528583148,6.4342,155.37,155.35,50.9548]
[1751528583442,6.4342,155.37,155.35,44.52]
[1751528585644,6.4342,155.37,155.35,50.9549]
[1751528586750,6.4342,155.37,155.35,44.52]
[1751528589350,10.07309737,155.38,155.35,44.52]
[1751528590447,10.07309737,155.38,155.35,50.9549]
[1751528591854,6.4341,155.37,155.35,44.52]
[1751528593153,10.07309737,155.38,155.35,50.9549]
[1751528597054,6.4341,155.37,155.35,50.9549]
[1751528597455,6.4341,155.37,155.35,44.52]
[1751528597851,6.4341,155.37,155.35,50.9549]
[1751528601056,6.4341,155.37,155.35,44.52]
[1751528601951,2.33328018,155.36,155.35,44.52]
[1751528605863,2.33328018,155.36,155.34,193.1752]
[1751528606153,6.00749513,155.4,155.34,186.74]
[1751528606350,2.33328018,155.38,155.34,189.07328018]
[1751528606553,2.33328018,155.38,155.36,6.4343]
[1751528606750,2.33328018,155.38,155.37,186.72]
[1751528609757,10.07807293,155.39,155.37,186.72]
[1751528610462,3.64467293,155.39,155.37,186.72]
[1751528610864,3.64467293,155.4,155.37,186.72]
[1751528611558,10.07757293,155.4,155.37,193.1539]
[1751528612267,6.4334,155.39,155.37,186.72]
[1751528612768,6.4334,155.39,155.36,237.5145]
[1751528612967,3.64467293,155.38,155.36,237.5145]
[1751528614661,3.64467293,155.38,155.37,6.4341]
[1751528615260,3.64467293,155.38,155.36,237.5144]
[1751528615767,3.64467293,155.38,155.36,231.08]
[1751528615972,6.4334,155.39,155.36,231.08]
[1751528616567,6.4334,155.39,155.37,6.4341]
[1751528616972,10.07767293,155.4,155.36,231.08]
[1751528617174,10.07767293,155.4,155.37,6.4339]
[1751528618278,10.07767293,155.4,155.38,6.4337]
[1751528620376,3.64467293,155.4,155.38,6.4337]
[1751528621077,10.07757293,155.4,155.38,6.4337]
[1751528623183,3.64467293,155.4,155.37,0.04771498]
[1751528623486,3.64467293,155.38,155.37,186.68771498]
[1751528624579,10.07837293,155.38,155.37,186.68771498]
[1751528625887,10.07837293,155.38,155.37,0.04771498]
[1751528626585,3.64467293,155.38,155.37,0.04771498]
[1751528629588,10.07837293,155.38,155.37,0.04771498]
[1751528629789,8.76686277,155.38,155.37,0.04771498]
[1751528632285,2.33316277,155.38,155.37,0.04771498]
[1751528632982,8.76686277,155.38,155.37,0.04771498]
[1751528639390,6.00749513,155.4,155.37,6.48171498]
[1751528639590,2.33316277,155.38,155.37,6.48171498]
[1751528642392,6.4331,155.4,155.37,6.48171498]
[1751528642594,2.33316277,155.38,155.37,6.48171498]
[1751528651692,8.76686277,155.38,155.37,0.04771498]
[1751528654700,2.33316277,155.38,155.37,0.04771498]
[1751528656303,8.76686277,155.38,155.37,0.04771498]
[1751528661602,2.33316277,155.38,155.37,0.04771498]
[1751528663107,2.33316277,155.38,155.37,6.48181498]
[1751528663306,2.33316277,155.38,155.37,0.04771498]
[1751528664709,6.0182023,155.4,155.37,0.04771498]
[1751528664907,2.37240064,155.41,155.37,0.04771498]
[1751528665101,2.33152201,155.4,155.37,0.04771498]
[1751528665301,8.76452201,155.4,155.37,0.04771498]
[1751528665605,2.33152201,155.39,155.37,0.04771498]
[1751528666107,2.33152201,155.39,155.38,6.4336]
[1751528667502,2.33152201,155.39,155.37,0.04771498]
[1751528667503,8.76502201,155.39,155.37,0.04771498]
[1751528667706,2.33152201,155.38,155.37,0.04771498]
[1751528668507,2.33152201,155.38,155.37,6.48171498]
[1751528670209,2.33152201,155.4,155.37,0.04771498]
[1751528670404,0.04087863,155.41,155.37,2.37923699]
[1751528670608,0.04087863,155.41,155.38,2.33152201]
[1751528670804,0.04087863,155.41,155.39,44.34]
[1751528671005,0.04087863,155.41,155.4,6.4329]
[1751528673606,2.37240064,155.41,155.4,6.4329]
[1751528673802,2.37240064,155.41,155.39,237.2531]
[1751528674001,2.33152201,155.4,155.39,237.2531]
[1751528674207,2.33152201,155.4,155.39,44.34]
[1751528674512,8.76442201,155.4,155.39,44.34]
[1751528677313,2.33152201,155.4,155.39,44.34]
[1751528677911,8.76442201,155.4,155.39,44.34]
[1751528679714,8.76442201,155.4,155.37,6.48161498]
[1751528679911,2.33152201,155.38,155.37,6.48161498]
[1751528680114,2.33152201,155.38,155.37,0.04771498]
[1751528686419,2.33152201,155.38,155.37,6.48181498]
[1751528687317,2.33152201,155.38,155.37,0.04771498]
[1751528690920,2.33152201,155.38,155.37,6.48181498]
[1751528700225,2.37240064,155.41,155.37,0.04771498]
[1751528700420,2.37240064,155.41,155.37,2.37923699]
[1751528700929,2.37240064,155.41,155.4,6.4329]
[1751528703427,8.80520064,155.41,155.38,6.4334]
[1751528703623,0.04087863,155.41,155.38,6.4334]
[1751528703828,2.33152201,155.39,155.38,6.4334]
[1751528705133,2.33152201,155.39,155.37,0.04771498]
[1751528705633,6.47357863,155.41,155.37,0.04771498]
[1751528705634,2.37240064,155.41,155.37,2.37923699]
[1751528706230,0.04087863,155.41,155.4,6.4329]
[1751528706921,2.37240064,155.41,155.4,6.4329]
[1751528707125,2.37240064,155.41,155.39,6.4331]
[1751528707436,2.33152201,155.4,155.39,6.4331]
[1751528707740,2.33152201,155.4,155.38,44.3]
[1751528707931,2.33152201,155.39,155.38,44.3]
[1751528708423,2.33152201,155.39,155.38,50.7336]
[1751528709132,6.47337863,155.41,155.38,44.3]
[1751528709133,2.37240064,155.41,155.38,44.3]
[1751528709330,2.33152201,155.4,155.38,44.3]
[1751528709524,2.33152201,155.39,155.38,44.3]
[1751528710131,2.33152201,155.39,155.38,50.7336]
[1751528710333,2.37240064,155.41,155.38,44.3]
[1751528710944,2.37240064,155.41,155.39,6.4331]
[1751528712543,2.37240064,155.41,155.4,6.4329]
[1751528712742,2.37240064,155.41,155.38,44.3]
[1751528713743,2.37240064,155.41,155.39,6.4333]
[1751528713944,2.37240064,155.41,155.38,44.3]
[1751528714547,2.37240064,155.41,155.39,6.4333]
[1751528714747,2.33152201,155.4,155.39,6.4333]
[1751528715446,6.47337863,155.41,155.39,6.4333]
[1751528715644,2.33152201,155.4,155.39,6.4333]
[1751528721152,2.33152201,155.4,155.38,44.3]
[1751528721954,2.33152201,155.4,155.39,6.4333]
[1751528722351,2.23152201,155.4,155.39,6.4333]
[1751528723759,2.37240064,155.41,155.4,6.4329]
[1751528725460,2.37240064,155.41,155.39,6.4331]
[1751528725662,2.33152201,155.4,155.39,6.4331]
[1751528727062,2.37240064,155.41,155.4,6.4329]
[1751528729059,2.37240064,155.41,155.38,50.7335]
[1751528729261,2.33152201,155.4,155.38,50.7335]
[1751528729457,2.33152201,155.4,155.38,44.3]
[1751528729656,2.33152201,155.4,155.39,6.4333]
[1751528730259,2.37240064,155.41,155.39,6.4333]
[1751528730459,2.37240064,155.41,155.4,6.4329]
[1751528732360,2.37240064,155.41,155.39,6.4331]
[1751528735164,2.37240064,155.41,155.4,6.4329]
[1751528735467,2.37240064,155.41,155.38,44.3]
[1751528736264,2.37240064,155.41,155.39,6.4329]
[1751528738766,0.04087863,155.41,155.4,6.4329]
[1751528740669,2.37240064,155.41,155.38,46.63152201]
[1751528740859,2.37240064,155.41,155.38,44.3]
[1751528741464,2.37240064,155.41,155.4,6.4329]
[1751528741962,8.80510064,155.41,155.39,6.4331]
[1751528742162,2.33152201,155.4,155.39,6.4331]
[1751528745173,8.76442201,155.4,155.38,50.7336]
[1751528745473,2.33152201,155.4,155.38,50.7336]
[1751528746972,2.33152201,155.4,155.39,6.4333]
[1751528748580,2.33152201,155.4,155.38,50.7335]
[1751528748877,2.33152201,155.4,155.38,44.3]
[1751528750586,2.33152201,155.4,155.39,6.4333]
[1751528751585,6.47357863,155.41,155.39,6.4333]
[1751528751788,2.33152201,155.4,155.39,6.4333]
[1751528751986,8.76442201,155.4,155.38,50.7336]
[1751528752284,2.33152201,155.4,155.38,50.7336]
[1751528753684,2.33152201,155.4,155.39,6.4333]
[1751528755389,6.47357863,155.41,155.39,6.4333]
[1751528755691,2.33152201,155.4,155.39,6.4333]
[1751528758292,6.47357863,155.41,155.39,6.4333]
[1751528758589,8.76442201,155.4,155.38,50.7335]
[1751528758789,2.33152201,155.4,155.38,50.7335]
[1751528763492,8.76442201,155.4,155.38,50.7335]
[1751528763691,2.33152201,155.4,155.38,50.7335]
[1751528766291,2.33152201,155.4,155.34,4.50220762]
[1751528766292,2.33226382,155.39,155.34,4.50220762]
[1751528766490,14.38347029,155.35,155.15,16.03481524]
[1751528766692,6.03198412,155.3,155.13,60.23481524]
[1751528766992,6.03198412,155.3,154.97,40.08703811]
[1751528766993,2.33226382,155.2,155.08,16.03481524]
[1751528767191,5.28873379,155.19,154.98,16.03481524]
[1751528767390,2.33226382,155.11,154.96,16.03481524]
[1751528767587,2.33226382,155.09,154.97,45.52]
[1751528767795,5.28873379,155.08,154.96,555.86]
[1751528767996,6.03198412,155.2,155.07,2.33226382]
[1751528768197,5.46369222,155.19,155.16,2.33226382]
[1751528768497,2.33226382,155.22,155.16,2.33226382]
[1751528768693,0.04274335,155.19,155.16,2.33226382]
[1751528769094,0.04274335,155.19,155.16,6.60876382]
[1751528769896,0.04274335,155.19,155.18,6.442]
[1751528770400,0.04274335,155.19,155.16,6.6085]
[1751528770895,9.11420234,155.26,155.17,3.65246967]
[1751528771097,3.65246967,155.26,155.19,3.65246967]
[1751528771291,3.65246967,155.28,155.2,237.28]
[1751528771493,3.65246967,155.28,155.21,3.65246967]
[1751528772396,3.65246967,155.28,155.24,6.4393]
[1751528772699,3.65246967,155.28,155.21,3.65246967]
[1751528773703,3.65246967,155.28,155.26,6.4386]
[1751528774801,3.65246967,155.28,155.27,6.4382]
[1751528775100,3.65246967,155.3,155.25,45.56]
[1751528777004,3.65246967,155.3,155.28,6.4375]
[1751528777999,3.65246967,155.3,155.29,6.4374]
[1751528779108,5.38492939,155.32,155.29,6.4374]
[1751528779314,9.03739906,155.32,155.25,45.56]
[1751528779612,3.65246967,155.32,155.25,45.56]
[1751528780504,9.03662207,155.32,155.25,45.56]
[1751528781309,9.03662207,155.32,155.29,6.4374]
[1751528781512,3.65246967,155.32,155.29,6.4374]
[1751528781911,3.65246967,155.32,155.28,6.4378]
[1751528782105,3.65246967,155.3,155.25,45.56]
[1751528782304,49.21246967,155.36,155.25,45.56]
[1751528782305,3.64959425,155.29,155.25,45.56]
[1751528782603,3.64959425,155.29,155.27,6.4379]
[1751528785317,10.08629425,155.31,155.27,6.4379]
[1751528786215,6.4371,155.3,155.26,6.4386]
[1751528786406,3.64932285,155.3,155.25,45.56]
[1751528786612,6.4367,155.31,155.27,6.4379]
[1751528787412,10.08513218,155.31,155.27,6.4379]
[1751528789827,10.08513218,155.31,155.28,6.4378]
[1751528793726,10.08572094,155.31,155.28,6.4378]
[1751528799536,3.64902094,155.31,155.27,6.4381]
[1751528799735,3.64933851,155.3,155.27,6.4381]
[1751528800033,10.08653851,155.3,155.27,6.4378]
[1751528800932,10.08643693,155.3,155.27,6.4378]
[1751528804033,6.4372,155.3,155.27,6.4378]
[1751528804329,3.648675,155.33,155.25,49.208675]
[1751528804726,3.648675,155.33,155.3,6.4368]
[1751528804936,9.04867492,155.33,155.3,6.4368]
[1751528805232,5.39999992,155.32,155.3,6.4368]
[1751528806234,11.83629992,155.32,155.29,6.4372]
[1751528806535,5.39999992,155.31,155.29,6.4372]
[1751528806935,5.39999992,155.31,155.3,6.437]
[1751528807135,5.39999992,155.31,155.26,3.648675]
[1751528807336,3.648675,155.33,155.26,3.648675]
[1751528807532,11.843177,155.32,155.29,6.4371]
[1751528807733,5.406777,155.31,155.26,3.648675]
[1751528808237,5.406777,155.31,155.3,6.437]
[1751528809335,3.648675,155.34,155.31,6.4364]
[1751528809929,10.084275,155.34,155.31,6.4364]
[1751528811140,10.084275,155.34,155.32,6.4361]
[1751528812441,6.435,155.35,155.32,6.4361]
[1751528813939,6.4354,155.34,155.32,6.4361]
[1751528817340,6.4351,155.35,155.32,6.4361]
[1751528818036,16.11338482,155.36,155.3,47.8812]
[1751528818234,16.11338482,155.36,155.3,50.216]
[1751528818639,6.4349,155.35,155.32,6.436]
[1751528818837,9.67868482,155.36,155.3,50.216]
[1751528819239,10.0815007,155.36,155.3,50.216]
[1751528819436,10.08144676,155.36,155.3,50.216]
[1751528819640,10.08144676,155.36,155.33,6.4357]
[1751528820143,16.11343088,155.36,155.33,6.4357]
[1751528821443,5.44502315,155.35,155.33,6.4357]
[1751528821640,5.44502315,155.34,155.33,6.4357]
[1751528822238,0.0436626,155.36,155.34,6.435]
[1751528822442,5.44388515,155.35,155.34,6.435]
[1751528826246,5.44388515,155.35,155.34,6.435]
[1751528837955,5.44388515,155.35,155.33,0.04091054]
[1751528838163,5.44388515,155.34,155.33,0.04091054]
[1751528839565,5.44388515,155.34,155.33,6.47671054]
[1751528840267,7.77709429,155.34,155.33,0.04091054]
[1751528842367,5.44388515,155.34,155.33,0.04091054]
[1751528842567,7.77709429,155.34,155.33,6.47671054]
[1751528843673,14.21239429,155.34,155.33,0.04091054]
[1751528848174,6.4366,155.31,155.3,45.74]
[1751528848476,14.21369429,155.31,155.3,45.74]
[1751528849171,11.88048515,155.31,155.3,45.74]
[1751528849377,14.21369429,155.31,155.3,45.74]
[1751528857379,14.21369429,155.31,155.27,6.4381]
[1751528857380,6.4375,155.29,155.27,45.24]
[1751528857585,7.77709429,155.28,155.27,45.24]
[1751528858583,7.77709429,155.28,155.27,51.6782]
[1751528859887,14.21489429,155.28,155.27,45.24]
[1751528863381,7.77709429,155.28,155.27,45.24]
[1751528863587,2.33320914,155.28,155.27,45.24]
[1751528865584,5.40052533,155.28,155.27,45.24]
[1751528865788,8.77080914,155.29,155.27,45.24]
[1751528867295,6.4376,155.29,155.27,45.24]
[1751528867593,8.77080914,155.29,155.27,45.24]
[1751528868594,6.4376,155.29,155.27,51.6782]
[1751528868797,8.77080914,155.29,155.27,51.6782]
[1751528869696,8.77080914,155.29,155.27,45.24]
[1751528869900,7.73363058,155.28,155.27,45.24]
[1751528870688,7.73363058,155.28,155.27,51.6782]
[1751528871092,5.40042144,155.28,155.27,51.6782]
[1751528871302,5.40042144,155.28,155.27,45.24]
[1751528871501,14.17143058,155.28,155.27,45.24]
[1751528871699,7.73363058,155.28,155.23,44.88]
[1751528871898,2.33320914,155.25,155.23,44.88]
[1751528872298,2.33320914,155.25,155.23,232.7]
[1751528872497,2.33320914,155.25,155.24,6.4394]
[1751528872697,2.38272306,155.26,155.24,6.4394]
[1751528874201,0.04951392,155.26,155.24,6.4394]
[1751528874402,2.38272306,155.26,155.24,6.4394]
[1751528874998,0.04951392,155.26,155.24,6.4394]
[1751528875200,0.04951392,155.26,155.25,6.4391]
[1751528876702,0.04951392,155.26,155.24,6.4394]
[1751528877104,2.38272306,155.26,155.24,6.4394]
[1751528877906,5.39500073,155.25,155.24,6.4394]
[1751528878506,2.38272306,155.26,155.24,6.4394]
[1751528879406,5.39487568,155.25,155.24,6.4394]
[1751528879606,2.38272306,155.26,155.24,6.4394]
[1751528882512,2.38272306,155.26,155.25,6.4391]
[1751528882707,7.77332358,155.26,155.25,6.4391]
[1751528887612,7.77332358,155.26,155.24,6.4393]
[1751528887813,7.72380966,155.25,155.23,44.88]
[1751528888006,7.7235721,155.24,155.23,232.26]
[1751528888209,7.7235721,155.24,155.23,51.3199]
[1751528890310,5.39036296,155.24,155.23,51.3199]
[1751528890513,7.7235721,155.24,155.23,51.3199]
[1751528896614,5.39036296,155.24,155.23,51.3199]
[1751528897317,2.38272306,155.26,155.25,6.4391]
[1751528897615,2.38272306,155.26,155.25,193.7191]
[1751528898018,0.04951392,155.26,155.25,193.7191]
[1751528899720,2.33320914,155.28,155.27,6.4382]
[1751528903112,2.33320914,155.28,155.24,0.04315612]
[1751528903314,2.33320914,155.25,155.24,0.04315612]
[1751528903622,8.77230914,155.25,155.24,0.04315612]
[1751528903822,2.33320914,155.25,155.24,0.04315612]
[1751528904618,8.77230914,155.25,155.24,0.04315612]
[1751528905723,0.04089248,155.26,155.24,0.04315612]
[1751528906226,0.04089248,155.26,155.25,6.4391]
[1751528906712,0.04089248,155.26,155.25,51.0391]
[1751528906916,10.08819239,155.3,155.27,6.4382]
[1751528907116,12.23952442,155.3,155.27,6.4382]
[1751528909222,5.38429034,155.29,155.27,6.4382]
[1751528909422,5.38429034,155.28,155.27,6.4382]
[1751528910523,10.08819239,155.3,155.27,6.4382]
[1751528913321,6.4374,155.29,155.27,6.4382]
[1751528914226,6.4378,155.28,155.26,6.4385]
[1751528914427,3.65099239,155.28,155.25,44.6]
[1751528914923,10.08919239,155.28,155.25,51.0388]
[1751528916429,6.4383,155.27,155.25,51.0388]
[1751528919025,5.39995728,155.26,155.25,51.0388]
[1751528924032,5.39995728,155.26,155.25,44.6]
[1751528924432,5.39995728,155.26,155.25,51.0391]
[1751528950255,7.73576286,155.26,155.25,44.6]
[1751528950460,5.39995728,155.26,155.25,44.6]
[1751528950652,6.01956329,155.29,155.25,46.93580558]
[1751528950853,44.88,155.34,155.25,46.93580558]
[1751528950854,2.33580558,155.34,155.28,2.33580558]
[1751528951054,2.33580558,155.34,155.3,2.33580558]
[1751528951357,2.33580558,155.34,155.31,44.56]
[1751528952261,2.33580558,155.33,155.32,6.4361]
[1751528953856,10.08192165,155.35,155.32,6.4361]
[1751528954560,3.64672165,155.35,155.31,50.9964]
[1751528955059,10.08252165,155.33,155.31,50.9964]
[1751528956560,3.64672165,155.33,155.31,50.9964]
[1751528957068,10.08272165,155.33,155.31,44.56]
[1751528957771,78.75423037,155.37,155.31,50.9964]
[1751528957967,3.64672165,155.34,155.31,50.9964]
[1751528958364,6.4358,155.33,155.31,44.56]
[1751528958669,3.64672165,155.34,155.31,44.56]
[1751528959569,6.4358,155.33,155.31,44.56]
[1751528960263,6.4358,155.33,155.31,50.9966]
[1751528960464,10.08212165,155.34,155.31,50.9966]
[1751528960663,3.64672165,155.34,155.31,44.56]
[1751528960860,3.64672165,155.36,155.33,6.4358]
[1751528961064,3.64672165,155.36,155.31,44.56]
[1751528961065,6.435,155.35,155.31,44.56]
[1751528961467,6.435,155.35,155.32,6.4359]
[1751528961670,6.435,155.35,155.31,44.60470084]
[1751528962373,6.435,155.35,155.32,6.4361]
[1751528962671,10.08152165,155.36,155.31,44.60470084]
[1751528962872,10.08152165,155.36,155.33,6.4358]
[1751528963072,6.435,155.35,155.33,6.4358]
[1751528963565,10.08152165,155.36,155.33,6.4358]
[1751528966174,3.64672165,155.36,155.31,44.60470084]
[1751528966674,10.08122165,155.36,155.33,6.4355]
[1751528966875,3.64672165,155.36,155.31,44.60470084]
[1751528967071,6.4345,155.36,155.33,6.4355]
[1751528967278,3.64672165,155.37,155.31,44.60470084]
[1751528968678,6.4346,155.36,155.33,6.4356]
[1751528971174,2.1338,155.39,155.32,3.64672165]
[1751528971381,5.78052165,155.39,155.32,3.64672165]
[1751528972170,6.434,155.38,155.34,6.435]
[1751528972879,6.434,155.38,155.34,6.48379669]
[1751528973384,6.4341,155.37,155.34,6.48379669]
[1751528974775,10.08082165,155.37,155.34,6.48379669]